[Event "*** Titled Tuesday Blitz"]
[Site "Chess.com"]
[Date "2020.10.20"]
[Round "3"]
[White "Blitzstream"]
[Black "eljanov"]
[Result "0-1"]
[WhiteElo "2663"]
[BlackElo "2886"]
[TimeControl "180+1"]
[EndTime "10:29:48 PDT"]
[Termination "eljanov won by resignation"]

1. d4 {[%clk 0:03:00.9]} 1... Nf6 {[%clk 0:02:59.6]} 2. Bg5 {[%clk 0:03:00.8]}
2... e6 {[%clk 0:02:58.9]} 3. e4 {[%clk 0:03:00.7]} 3... h6 {[%clk 0:02:59]} 4.
Bxf6 {[%clk 0:03:00.6]} 4... Qxf6 {[%clk 0:02:59.9]} 5. c3 {[%clk 0:03:00.9]}
5... d6 {[%clk 0:02:58.5]} 6. Bd3 {[%clk 0:03:00.6]} 6... e5 {[%clk 0:02:54.3]}
7. Ne2 {[%clk 0:03:00.1]} 7... Nc6 {[%clk 0:02:52.6]} 8. O-O {[%clk 0:02:51.8]}
8... Bd7 {[%clk 0:02:43.7]} 9. f4 {[%clk 0:02:45.3]} 9... exd4 {[%clk 0:02:42]}
10. cxd4 {[%clk 0:02:45.7]} 10... Nxd4 {[%clk 0:02:37.2]} 11. Nbc3 {[%clk
0:02:42.1]} 11... Bc6 {[%clk 0:02:12.7]} 12. Kh1 {[%clk 0:02:03.1]} 12... Be7
{[%clk 0:02:04.4]} 13. e5 {[%clk 0:01:14.5]} 13... dxe5 {[%clk 0:02:03.3]} 14.
fxe5 {[%clk 0:01:15.4]} 14... Qxe5 {[%clk 0:01:57.9]} 15. Nxd4 {[%clk
0:01:15.5]} 15... Qxd4 {[%clk 0:01:58]} 16. Rxf7 {[%clk 0:01:16.1]} 16... Bf6
{[%clk 0:01:12]} 17. Rxf6 {[%clk 0:01:03.1]} 17... Qxf6 {[%clk 0:01:00.2]} 18.
Qh5+ {[%clk 0:01:01.5]} 18... Kd8 {[%clk 0:00:57.9]} 19. Bf5 {[%clk 0:00:47.7]}
19... Re8 {[%clk 0:00:49.1]} 20. Rd1+ {[%clk 0:00:43.1]} 20... Ke7 {[%clk
0:00:49.5]} 21. Bd7 {[%clk 0:00:35]} 21... Kf8 {[%clk 0:00:42.9]} 22. Bxe8
{[%clk 0:00:20.3]} 22... Rxe8 {[%clk 0:00:42.5]} 23. Qg4 {[%clk 0:00:12.1]}
23... Kg8 {[%clk 0:00:38.7]} 24. h3 {[%clk 0:00:11.9]} 24... Kh7 {[%clk
0:00:37.1]} 25. a4 {[%clk 0:00:11]} 25... Qg6 {[%clk 0:00:36.3]} 26. Qxg6+
{[%clk 0:00:10.3]} 26... Kxg6 {[%clk 0:00:37.2]} 27. Kg1 {[%clk 0:00:10.3]}
27... a5 {[%clk 0:00:33.8]} 28. Kf2 {[%clk 0:00:10.7]} 28... Kf7 {[%clk
0:00:31.4]} 29. Ne2 {[%clk 0:00:10.2]} 29... Bxa4 {[%clk 0:00:30]} 30. Ra1
{[%clk 0:00:09.9]} 30... Bb5 {[%clk 0:00:25.4]} 31. Nc3 {[%clk 0:00:10.1]} 31...
Bc6 {[%clk 0:00:23.2]} 32. Rxa5 {[%clk 0:00:10]} 32... Rd8 {[%clk 0:00:21.7]}
33. b4 {[%clk 0:00:02.7]} 33... Rd2+ {[%clk 0:00:21.4]} 34. Ne2 {[%clk
0:00:02.2]} 34... Bxg2 {[%clk 0:00:20.3]} 35. Rf5+ {[%clk 0:00:02]} 35... Kg8
{[%clk 0:00:20.3]} 36. Rf4 {[%clk 0:00:02.4]} 36... Bc6 {[%clk 0:00:19.1]} 37.
Ke3 {[%clk 0:00:01.8]} 37... Rb2 {[%clk 0:00:19]} 38. Nc3 {[%clk 0:00:02.3]}
38... Rb3 {[%clk 0:00:18.4]} 39. Kd3 {[%clk 0:00:02.6]} 39... Bd7 {[%clk
0:00:18.6]} 40. h4 {[%clk 0:00:02.8]} 40... Ra3 {[%clk 0:00:17.8]} 41. Kc2
{[%clk 0:00:03.2]} 41... Ra8 {[%clk 0:00:17.4]} 42. b5 {[%clk 0:00:03.6]} 42...
Rf8 {[%clk 0:00:17.1]} 43. Rc4 {[%clk 0:00:04.2]} 43... c6 {[%clk 0:00:16.8]}
44. b6 {[%clk 0:00:04.9]} 44... Bf5+ {[%clk 0:00:14.3]} 45. Kb2 {[%clk
0:00:04.7]} 45... Rf6 {[%clk 0:00:14.5]} 46. Na4 {[%clk 0:00:05.1]} 46... Bc8
{[%clk 0:00:12.5]} 47. Nc5 {[%clk 0:00:05.4]} 47... Rf5 {[%clk 0:00:13.1]} 48.
Kc3 {[%clk 0:00:05.5]} 48... g5 {[%clk 0:00:13.4]} 49. hxg5 {[%clk 0:00:04.9]}
49... hxg5 {[%clk 0:00:14]} 50. Kb4 {[%clk 0:00:05.6]} 50... Rf4 {[%clk
0:00:14.3]} 51. Ne4 {[%clk 0:00:05.9]} 51... g4 {[%clk 0:00:11.7]} 52. Nd6
{[%clk 0:00:06.1]} 52... Rxc4+ {[%clk 0:00:10.8]} 53. Kxc4 {[%clk 0:00:06.7]}
53... g3 {[%clk 0:00:11.1]} 54. Nxc8 {[%clk 0:00:06.6]} 54... g2 {[%clk
0:00:11.4]} 55. Ne7+ {[%clk 0:00:07]} 55... Kh7 {[%clk 0:00:11.9]} 56. Nxc6
{[%clk 0:00:07.9]} 56... g1=Q {[%clk 0:00:12.1]} 57. Na5 {[%clk 0:00:07.5]}
57... Qxb6 {[%clk 0:00:12]} 0-1

[Event "*** Titled Tuesday Blitz"]
[Site "Chess.com"]
[Date "2020.10.20"]
[Round "3"]
[White "chess94cu"]
[Black "Rubinstein_Akiba"]
[Result "0-1"]
[WhiteElo "2555"]
[BlackElo "2379"]
[TimeControl "180+1"]
[EndTime "10:29:50 PDT"]
[Termination "Rubinstein_Akiba won on time"]

1. d4 {[%clk 0:02:58.2]} 1... Nf6 {[%clk 0:02:58]} 2. c4 {[%clk 0:02:57.8]} 2...
e6 {[%clk 0:02:57.5]} 3. Nf3 {[%clk 0:02:56.7]} 3... d5 {[%clk 0:02:55.3]} 4.
Nc3 {[%clk 0:02:55.6]} 4... Bb4 {[%clk 0:02:54.5]} 5. cxd5 {[%clk 0:02:51.4]}
5... exd5 {[%clk 0:02:53.2]} 6. Bg5 {[%clk 0:02:50.9]} 6... h6 {[%clk
0:02:50.7]} 7. Bh4 {[%clk 0:02:50.7]} 7... g5 {[%clk 0:02:43.1]} 8. Bg3 {[%clk
0:02:50.2]} 8... Ne4 {[%clk 0:02:43.7]} 9. Nd2 {[%clk 0:02:29.3]} 9... Nxc3
{[%clk 0:02:36.2]} 10. bxc3 {[%clk 0:02:28.8]} 10... Bxc3 {[%clk 0:02:37.1]} 11.
Rc1 {[%clk 0:02:28.5]} 11... Bxd2+ {[%clk 0:02:35.1]} 12. Qxd2 {[%clk
0:02:27.8]} 12... c6 {[%clk 0:02:33.7]} 13. h4 {[%clk 0:02:26.4]} 13... g4
{[%clk 0:02:11.1]} 14. Be5 {[%clk 0:02:22.2]} 14... f6 {[%clk 0:02:06.6]} 15.
Bf4 {[%clk 0:02:20.2]} 15... h5 {[%clk 0:02:02.6]} 16. e3 {[%clk 0:02:20.2]}
16... Bf5 {[%clk 0:02:01.2]} 17. Be2 {[%clk 0:01:46.6]} 17... Nd7 {[%clk
0:01:39.9]} 18. O-O {[%clk 0:01:46]} 18... Qe7 {[%clk 0:01:34.8]} 19. Qa5 {[%clk
0:01:14.4]} 19... Nf8 {[%clk 0:01:22.2]} 20. Bg3 {[%clk 0:01:08.4]} 20... Kf7
{[%clk 0:01:09.7]} 21. Rfe1 {[%clk 0:01:07.1]} 21... Kg6 {[%clk 0:01:07.8]} 22.
Qd2 {[%clk 0:01:05]} 22... Rg8 {[%clk 0:00:57]} 23. Bd3 {[%clk 0:00:57.2]} 23...
Qd7 {[%clk 0:00:47.6]} 24. Rb1 {[%clk 0:00:55.9]} 24... Rg7 {[%clk 0:00:36.5]}
25. e4 {[%clk 0:00:40.2]} 25... dxe4 {[%clk 0:00:34.3]} 26. Bxe4 {[%clk
0:00:41.1]} 26... Bxe4 {[%clk 0:00:34.3]} 27. Rxe4 {[%clk 0:00:42]} 27... Qf5
{[%clk 0:00:33]} 28. Rbe1 {[%clk 0:00:41.2]} 28... Rd8 {[%clk 0:00:31.4]} 29.
Rf4 {[%clk 0:00:39.3]} 29... Qd5 {[%clk 0:00:25.5]} 30. Qc2+ {[%clk 0:00:38.6]}
30... Kf7 {[%clk 0:00:24.6]} 31. Rf5 {[%clk 0:00:33.9]} 31... Qd7 {[%clk
0:00:20.2]} 32. Rxh5 {[%clk 0:00:31.5]} 32... Ne6 {[%clk 0:00:18]} 33. Rh6
{[%clk 0:00:15.2]} 33... Nxd4 {[%clk 0:00:17.4]} 34. Qe4 {[%clk 0:00:11.8]}
34... Nf5 {[%clk 0:00:14.6]} 35. Rxf6+ {[%clk 0:00:06.2]} 35... Kxf6 {[%clk
0:00:12.2]} 36. Be5+ {[%clk 0:00:06.5]} 36... Kg6 {[%clk 0:00:11.5]} 37. Qxg4+
{[%clk 0:00:05.8]} 37... Kh7 {[%clk 0:00:10.2]} 38. Bxg7 {[%clk 0:00:06.1]}
38... Nxg7 {[%clk 0:00:11.1]} 39. Qg5 {[%clk 0:00:04.7]} 39... Rf8 {[%clk
0:00:07.6]} 40. Re7 {[%clk 0:00:04.9]} 40... Qd4 {[%clk 0:00:07.6]} 41. h5
{[%clk 0:00:03.8]} 41... Qxf2+ {[%clk 0:00:07.2]} 42. Kh2 {[%clk 0:00:04.3]}
42... Qf4+ {[%clk 0:00:07.3]} 43. Qxf4 {[%clk 0:00:04.6]} 43... Rxf4 {[%clk
0:00:08.2]} 44. Rxb7 {[%clk 0:00:05.3]} 44... Ra4 {[%clk 0:00:07.1]} 45. Kh3
{[%clk 0:00:04.1]} 45... Kh6 {[%clk 0:00:07.5]} 46. g4 {[%clk 0:00:04.3]} 46...
Rxa2 {[%clk 0:00:07.6]} 47. Rc7 {[%clk 0:00:04.2]} 47... Rc2 {[%clk 0:00:05.9]}
48. Rxa7 {[%clk 0:00:03]} 48... Rc4 {[%clk 0:00:06.5]} 0-1

[Event "*** Titled Tuesday Blitz"]
[Site "Chess.com"]
[Date "2020.10.20"]
[Round "3"]
[White "Korchmar_Vasiliy"]
[Black "NotFischer"]
[Result "1-0"]
[WhiteElo "2595"]
[BlackElo "2247"]
[TimeControl "180+1"]
[EndTime "10:29:50 PDT"]
[Termination "Korchmar_Vasiliy won by resignation"]

1. e4 {[%clk 0:03:00.9]} 1... d5 {[%clk 0:02:59.8]} 2. exd5 {[%clk 0:02:59.8]}
2... Nf6 {[%clk 0:02:59.9]} 3. d4 {[%clk 0:02:58]} 3... Bg4 {[%clk 0:02:59.8]}
4. Nf3 {[%clk 0:02:49.5]} 4... Qxd5 {[%clk 0:02:59.1]} 5. c4 {[%clk 0:02:47.7]}
5... Bxf3 {[%clk 0:02:55.1]} 6. Qxf3 {[%clk 0:02:45.6]} 6... Qxf3 {[%clk
0:02:55]} 7. gxf3 {[%clk 0:02:46.5]} 7... Nc6 {[%clk 0:02:52.9]} 8. Be3 {[%clk
0:02:45.8]} 8... O-O-O {[%clk 0:02:53]} 9. d5 {[%clk 0:02:41.5]} 9... Nb4 {[%clk
0:02:39.3]} 10. Na3 {[%clk 0:02:41.6]} 10... Kb8 {[%clk 0:02:35.9]} 11. Be2
{[%clk 0:02:05.7]} 11... g6 {[%clk 0:02:34.6]} 12. O-O {[%clk 0:02:00.1]} 12...
Bg7 {[%clk 0:02:34.1]} 13. Bc5 {[%clk 0:01:59.2]} 13... a5 {[%clk 0:02:23.9]}
14. Nb5 {[%clk 0:01:52.3]} 14... b6 {[%clk 0:02:10.2]} 15. Bxe7 {[%clk
0:01:46.3]} 15... Rde8 {[%clk 0:02:10.4]} 16. Bxb4 {[%clk 0:01:45.2]} 16... axb4
{[%clk 0:02:09.9]} 17. Bd3 {[%clk 0:01:16]} 17... Nd7 {[%clk 0:02:09.5]} 18.
Rab1 {[%clk 0:01:03]} 18... Nc5 {[%clk 0:02:08.4]} 19. Rfd1 {[%clk 0:01:03.5]}
19... Rd8 {[%clk 0:01:51.8]} 20. Kf1 {[%clk 0:00:57.4]} 20... Rhe8 {[%clk
0:01:50.6]} 21. Bc2 {[%clk 0:00:56.1]} 21... Kb7 {[%clk 0:01:47.2]} 22. d6
{[%clk 0:00:19.8]} 22... c6 {[%clk 0:01:47]} 23. d7 {[%clk 0:00:20.1]} 23... Re7
{[%clk 0:01:38.7]} 24. Nd6+ {[%clk 0:00:14.1]} 24... Kc7 {[%clk 0:01:38.8]} 25.
Ne8+ {[%clk 0:00:13.9]} 25... Rdxe8 {[%clk 0:01:31.3]} 26. dxe8=Q {[%clk
0:00:14.8]} 26... Rxe8 {[%clk 0:01:32.2]} 27. Re1 {[%clk 0:00:08.9]} 27... Rxe1+
{[%clk 0:01:26.5]} 28. Rxe1 {[%clk 0:00:09.8]} 28... Bf6 {[%clk 0:01:21.9]} 29.
b3 {[%clk 0:00:08.8]} 29... Ne6 {[%clk 0:01:20.6]} 30. Kg2 {[%clk 0:00:06.1]}
30... Nd4 {[%clk 0:01:21.1]} 31. Bb1 {[%clk 0:00:04.6]} 31... Kd6 {[%clk
0:01:21.5]} 32. Re8 {[%clk 0:00:04.2]} 32... Ne6 {[%clk 0:00:54.8]} 33. Rb8
{[%clk 0:00:03.5]} 33... Kc7 {[%clk 0:00:54.6]} 34. Ra8 {[%clk 0:00:03.7]} 34...
Bd4 {[%clk 0:00:48.9]} 35. Be4 {[%clk 0:00:02.1]} 35... Nc5 {[%clk 0:00:47.7]}
36. Ra7+ {[%clk 0:00:01.8]} 36... Kd6 {[%clk 0:00:47.6]} 37. Rxf7 {[%clk
0:00:01.6]} 37... h5 {[%clk 0:00:33.3]} 38. Bxg6 {[%clk 0:00:01.8]} 38... h4
{[%clk 0:00:32.8]} 39. Rh7 {[%clk 0:00:01.9]} 39... Bf6 {[%clk 0:00:32.5]} 40.
Be4 {[%clk 0:00:02.4]} 40... Nd7 {[%clk 0:00:29.9]} 41. Rh6 {[%clk 0:00:02.9]}
41... Kc7 {[%clk 0:00:28.8]} 42. Rh7 {[%clk 0:00:02.2]} 42... Kd6 {[%clk
0:00:28.5]} 43. Rh6 {[%clk 0:00:02.8]} 43... Kc7 {[%clk 0:00:28.5]} 44. Rg6
{[%clk 0:00:03.1]} 44... Be7 {[%clk 0:00:27.4]} 45. Rxc6+ {[%clk 0:00:02.7]}
45... Kd8 {[%clk 0:00:27.2]} 46. Rg6 {[%clk 0:00:03.6]} 46... Ne5 {[%clk
0:00:27.7]} 47. Rxb6 {[%clk 0:00:03.8]} 47... Bc5 {[%clk 0:00:23.8]} 48. Rb5
{[%clk 0:00:04.7]} 48... Nd7 {[%clk 0:00:23.4]} 49. Bc6 {[%clk 0:00:04.1]} 49...
Bd6 {[%clk 0:00:21.4]} 50. Bxd7 {[%clk 0:00:03.9]} 50... Kxd7 {[%clk 0:00:22.3]}
51. Rd5 {[%clk 0:00:04.5]} 51... Ke7 {[%clk 0:00:22.6]} 52. Rxd6 {[%clk
0:00:04.9]} 52... Kxd6 {[%clk 0:00:23.5]} 53. Kh3 {[%clk 0:00:05.8]} 53... Ke5
{[%clk 0:00:24.3]} 54. Kxh4 {[%clk 0:00:06.7]} 54... Kd4 {[%clk 0:00:25.2]} 55.
Kg5 {[%clk 0:00:06.3]} 55... Kc3 {[%clk 0:00:26.1]} 56. c5 {[%clk 0:00:06.9]}
56... Kb2 {[%clk 0:00:26.7]} 57. c6 {[%clk 0:00:07.8]} 57... Kxa2 {[%clk
0:00:27.6]} 58. c7 {[%clk 0:00:08.7]} 58... Kxb3 {[%clk 0:00:28.5]} 59. c8=Q
{[%clk 0:00:09.5]} 59... Ka3 {[%clk 0:00:29.4]} 60. Qb7 {[%clk 0:00:10.2]} 60...
b3 {[%clk 0:00:30.3]} 61. Qxb3+ {[%clk 0:00:10.8]} 61... Kxb3 {[%clk 0:00:30]}
62. f4 {[%clk 0:00:11.7]} 1-0

[Event "*** Titled Tuesday Blitz"]
[Site "Chess.com"]
[Date "2020.10.20"]
[Round "3"]
[White "Pertinhez76"]
[Black "AndrewDGreen"]
[Result "0-1"]
[WhiteElo "2136"]
[BlackElo "2385"]
[TimeControl "180+1"]
[EndTime "10:29:53 PDT"]
[Termination "AndrewDGreen won by checkmate"]

1. d4 {[%clk 0:03:00.9]} 1... Nf6 {[%clk 0:02:59.5]} 2. Bf4 {[%clk 0:02:59.3]}
2... g6 {[%clk 0:02:59.3]} 3. Nc3 {[%clk 0:02:55.3]} 3... d5 {[%clk 0:02:58.1]}
4. Qd2 {[%clk 0:02:55.4]} 4... Bg7 {[%clk 0:02:57.4]} 5. O-O-O {[%clk
0:02:54.1]} 5... O-O {[%clk 0:02:56.6]} 6. Bh6 {[%clk 0:02:52]} 6... Ne4 {[%clk
0:02:56.3]} 7. Nxe4 {[%clk 0:02:51.5]} 7... dxe4 {[%clk 0:02:56.9]} 8. h4 {[%clk
0:02:47.1]} 8... c5 {[%clk 0:02:55]} 9. Bxg7 {[%clk 0:02:39.6]} 9... Kxg7 {[%clk
0:02:54.8]} 10. h5 {[%clk 0:02:40]} 10... Bf5 {[%clk 0:02:20.4]} 11. hxg6 {[%clk
0:02:33.2]} 11... Bxg6 {[%clk 0:02:19.9]} 12. f3 {[%clk 0:02:32.8]} 12... cxd4
{[%clk 0:02:10.1]} 13. Qxd4+ {[%clk 0:02:29.6]} 13... Qxd4 {[%clk 0:02:09.6]}
14. Rxd4 {[%clk 0:02:29.8]} 14... Nc6 {[%clk 0:02:09.8]} 15. Rd7 {[%clk
0:02:25]} 15... Rac8 {[%clk 0:01:40.4]} 16. c3 {[%clk 0:02:11.2]} 16... b5
{[%clk 0:01:37]} 17. Rh4 {[%clk 0:01:58.8]} 17... exf3 {[%clk 0:01:31.9]} 18.
gxf3 {[%clk 0:01:56.6]} 18... b4 {[%clk 0:01:30.5]} 19. c4 {[%clk 0:01:55.3]}
19... Bf5 {[%clk 0:01:18.4]} 20. Rb7 {[%clk 0:01:49.8]} 20... Rfd8 {[%clk
0:01:05.8]} 21. e4 {[%clk 0:01:47.2]} 21... Bg6 {[%clk 0:01:04.6]} 22. Nh3
{[%clk 0:01:40.2]} 22... Na5 {[%clk 0:01:02.6]} 23. Rxb4 {[%clk 0:01:23.3]}
23... Rd4 {[%clk 0:00:59.3]} 24. b3 {[%clk 0:01:22.9]} 24... Rcd8 {[%clk
0:00:59.4]} 25. Be2 {[%clk 0:01:16]} 25... Rd2 {[%clk 0:00:59.3]} 26. Nf4 {[%clk
0:01:08.3]} 26... Rxa2 {[%clk 0:00:56.3]} 27. Bd3 {[%clk 0:00:48.4]} 27... Nc6
{[%clk 0:00:40.9]} 28. Rb7 {[%clk 0:00:39.9]} 28... Ne5 {[%clk 0:00:39.6]} 29.
Bc2 {[%clk 0:00:29.4]} 29... Nxf3 {[%clk 0:00:34.1]} 30. Nxg6 {[%clk 0:00:28.2]}
30... hxg6 {[%clk 0:00:35]} 31. Rf4 {[%clk 0:00:23]} 31... Nd4 {[%clk
0:00:32.4]} 32. Rf2 {[%clk 0:00:20.6]} 32... Re8 {[%clk 0:00:21.2]} 33. Rd2
{[%clk 0:00:18.6]} 33... e5 {[%clk 0:00:19.9]} 34. b4 {[%clk 0:00:16.1]} 34...
Rh8 {[%clk 0:00:16.5]} 35. Kb1 {[%clk 0:00:14.3]} 35... Ra3 {[%clk 0:00:12.5]}
36. Kb2 {[%clk 0:00:13.7]} 36... Re3 {[%clk 0:00:11.2]} 37. c5 {[%clk
0:00:13.3]} 37... Nxc2 {[%clk 0:00:09.2]} 38. Rxc2 {[%clk 0:00:13]} 38... Rxe4
{[%clk 0:00:09.6]} 39. c6 {[%clk 0:00:12.9]} 39... Rhh4 {[%clk 0:00:09.2]} 40.
b5 {[%clk 0:00:12.5]} 40... Rb4+ {[%clk 0:00:08.9]} 41. Kc1 {[%clk 0:00:12.8]}
41... Rhc4 {[%clk 0:00:05.9]} 42. c7 {[%clk 0:00:10.2]} 42... Rxc2+ {[%clk
0:00:05.6]} 43. Kxc2 {[%clk 0:00:11.1]} 43... Rc4+ {[%clk 0:00:06.1]} 44. Kb3
{[%clk 0:00:11.5]} 44... Rc1 {[%clk 0:00:05.8]} 45. Kb4 {[%clk 0:00:11.7]} 45...
e4 {[%clk 0:00:06]} 46. Rxa7 {[%clk 0:00:10.2]} 46... e3 {[%clk 0:00:06]} 47. b6
{[%clk 0:00:09.8]} 47... e2 {[%clk 0:00:06.2]} 48. c8=Q {[%clk 0:00:03.6]} 48...
e1=Q+ {[%clk 0:00:04.1]} 49. Kb5 {[%clk 0:00:02.7]} 49... Rxc8 {[%clk
0:00:03.5]} 50. Ka6 {[%clk 0:00:03.6]} 50... Qa1+ {[%clk 0:00:02.9]} 51. Kb7
{[%clk 0:00:04.5]} 51... Qc3 {[%clk 0:00:02.3]} 52. Ka6 {[%clk 0:00:04.1]} 52...
Qc4+ {[%clk 0:00:02.5]} 53. Kb7 {[%clk 0:00:03.8]} 53... Qc6+ {[%clk 0:00:02.4]}
54. Ka6 {[%clk 0:00:04.7]} 54... Rb8 {[%clk 0:00:02.5]} 55. Rb7 {[%clk
0:00:04.4]} 55... Qxb7+ {[%clk 0:00:01.9]} 56. Ka5 {[%clk 0:00:05.3]} 56...
Qxb6+ {[%clk 0:00:02.6]} 57. Ka4 {[%clk 0:00:05.7]} 57... Qb4# {[%clk
0:00:03.4]} 0-1

[Event "*** Titled Tuesday Blitz"]
[Site "Chess.com"]
[Date "2020.10.20"]
[Round "3"]
[White "sbouchet"]
[Black "tan275"]
[Result "1-0"]
[WhiteElo "2428"]
[BlackElo "2174"]
[TimeControl "180+1"]
[EndTime "10:29:54 PDT"]
[Termination "sbouchet won on time"]

1. e4 {[%clk 0:02:56.7]} 1... c6 {[%clk 0:02:59.6]} 2. Nc3 {[%clk 0:02:55.9]}
2... d5 {[%clk 0:02:59.9]} 3. Nf3 {[%clk 0:02:56.4]} 3... Nf6 {[%clk 0:02:59.3]}
4. e5 {[%clk 0:02:55.4]} 4... Ne4 {[%clk 0:02:59.2]} 5. d3 {[%clk 0:02:54.9]}
5... Nxc3 {[%clk 0:02:57.5]} 6. bxc3 {[%clk 0:02:55.8]} 6... c5 {[%clk
0:02:56.5]} 7. d4 {[%clk 0:02:50.5]} 7... Nc6 {[%clk 0:02:55.6]} 8. Bd3 {[%clk
0:02:47.6]} 8... e6 {[%clk 0:02:47.9]} 9. O-O {[%clk 0:02:46.8]} 9... Be7 {[%clk
0:02:45]} 10. Be3 {[%clk 0:02:39.7]} 10... cxd4 {[%clk 0:02:36.3]} 11. cxd4
{[%clk 0:02:37.7]} 11... Nb4 {[%clk 0:02:28.1]} 12. Be2 {[%clk 0:02:30.9]} 12...
Bd7 {[%clk 0:02:27.3]} 13. c3 {[%clk 0:02:12.2]} 13... Nc6 {[%clk 0:02:26.3]}
14. Rb1 {[%clk 0:02:08.4]} 14... Na5 {[%clk 0:02:22.2]} 15. Nd2 {[%clk
0:02:04.3]} 15... Rc8 {[%clk 0:02:20.3]} 16. Qc2 {[%clk 0:01:57.7]} 16... O-O
{[%clk 0:02:15.5]} 17. Nb3 {[%clk 0:01:47.4]} 17... Ba4 {[%clk 0:02:11.7]} 18.
Qd3 {[%clk 0:01:35.3]} 18... Nc4 {[%clk 0:02:00.7]} 19. Bc1 {[%clk 0:01:35.7]}
19... b5 {[%clk 0:01:41.1]} 20. f4 {[%clk 0:01:34.8]} 20... b4 {[%clk
0:01:37.2]} 21. cxb4 {[%clk 0:01:28]} 21... Bxb4 {[%clk 0:01:27.6]} 22. f5
{[%clk 0:01:27.8]} 22... exf5 {[%clk 0:01:22.9]} 23. Qxf5 {[%clk 0:01:26.3]}
23... Qb6 {[%clk 0:01:15.2]} 24. Nc5 {[%clk 0:00:58.1]} 24... Rxc5 {[%clk
0:01:00.9]} 25. dxc5 {[%clk 0:00:53.7]} 25... Qxc5+ {[%clk 0:00:59.7]} 26. Kh1
{[%clk 0:00:52]} 26... Bc3 {[%clk 0:00:47.7]} 27. Bf4 {[%clk 0:00:46.7]} 27...
Ne3 {[%clk 0:00:38.1]} 28. Bxe3 {[%clk 0:00:39.2]} 28... Qxe3 {[%clk 0:00:38]}
29. Bf3 {[%clk 0:00:36]} 29... Qxe5 {[%clk 0:00:26.3]} 30. Qxe5 {[%clk
0:00:35.6]} 30... Bxe5 {[%clk 0:00:26.6]} 31. Bxd5 {[%clk 0:00:36.3]} 31... Bc2
{[%clk 0:00:05.9]} 32. Rb7 {[%clk 0:00:35.2]} 32... Bg6 {[%clk 0:00:04.9]} 33.
Rxa7 {[%clk 0:00:35.1]} 33... Rd8 {[%clk 0:00:04.3]} 34. Ra8 {[%clk 0:00:34.8]}
34... Rxa8 {[%clk 0:00:03.5]} 35. Bxa8 {[%clk 0:00:35.7]} 35... Kf8 {[%clk
0:00:03]} 36. Bd5 {[%clk 0:00:36.2]} 36... f6 {[%clk 0:00:02.5]} 37. g3 {[%clk
0:00:32.7]} 37... Ke7 {[%clk 0:00:03.4]} 38. Kg2 {[%clk 0:00:32.6]} 38... Kd6
{[%clk 0:00:03.8]} 39. Rd1 {[%clk 0:00:31.9]} 39... Kc5 {[%clk 0:00:03.4]} 40.
Bb3 {[%clk 0:00:31.1]} 40... Be8 {[%clk 0:00:03.2]} 41. Rd5+ {[%clk 0:00:30.1]}
41... Kb6 {[%clk 0:00:02.4]} 42. Rd8 {[%clk 0:00:30.7]} 42... Bc6+ {[%clk
0:00:02.7]} 43. Kf1 {[%clk 0:00:29.4]} 43... Bc3 {[%clk 0:00:01.9]} 44. Rh8
{[%clk 0:00:27.8]} 44... Bb5+ {[%clk 0:00:01.9]} 45. Kf2 {[%clk 0:00:27.1]}
45... h6 {[%clk 0:00:02.8]} 46. Rg8 {[%clk 0:00:26]} 46... Bd4+ {[%clk
0:00:02.9]} 47. Kf3 {[%clk 0:00:25.6]} 47... f5 {[%clk 0:00:03.8]} 48. Kf4
{[%clk 0:00:24.9]} 48... Bd3 {[%clk 0:00:04]} 49. h4 {[%clk 0:00:22.8]} 49...
Kc5 {[%clk 0:00:04.3]} 50. Be6 {[%clk 0:00:21.3]} 50... Bc2 {[%clk 0:00:02.5]}
51. Bxf5 {[%clk 0:00:20.7]} 51... Ba4 {[%clk 0:00:01.8]} 52. Be6 {[%clk
0:00:19.8]} 52... Bc6 {[%clk 0:00:01.9]} 53. Bb3 {[%clk 0:00:19.6]} 53... Bc3
{[%clk 0:00:01.8]} 54. Kf5 {[%clk 0:00:18.8]} 54... Bd7+ {[%clk 0:00:01.9]} 55.
Kg6 {[%clk 0:00:18.8]} 55... Bc6 {[%clk 0:00:01.2]} 56. Rxg7 {[%clk 0:00:18.7]}
1-0